bitfinex/quotes_BTCUSD_20250608
["timestamp","ask_amount","ask_price","bid_price","bid_amount"]
[1749355108143,0.62649144,105620.0,105610.0,0.33663702]
[1749355108362,0.62649144,105620.0,105610.0,0.34550604]
[1749355109193,0.62649144,105620.0,105610.0,0.34550639]
[1749355109402,0.62649144,105620.0,105610.0,0.33663698]
[1749355109608,0.62649144,105620.0,105610.0,0.33663699]
[1749355109816,0.62649144,105620.0,105610.0,0.32998493]
[1749355110048,0.62649144,105620.0,105610.0,0.34550643]
[1749355110267,0.62649144,105620.0,105610.0,0.34550648]
[1749355110918,0.62649144,105620.0,105610.0,0.32998493]
[1749355111130,0.62649144,105620.0,105610.0,0.34550641]
[1749355111348,0.62649144,105620.0,105610.0,0.33885438]
[1749355111581,0.62649144,105620.0,105610.0,0.34550647]
[1749355112022,0.62649144,105620.0,105610.0,0.34550654]
[1749355112670,0.62649144,105620.0,105610.0,0.34550652]
[1749355112903,0.62649144,105620.0,105610.0,0.33885444]
[1749355113104,0.62649144,105620.0,105610.0,0.34550658]
[1749355113313,0.62649144,105620.0,105610.0,0.33663706]
[1749355113522,0.62649144,105620.0,105610.0,0.33885445]
[1749355113727,0.62649144,105620.0,105610.0,0.33663708]
[1749355113980,0.62649144,105620.0,105610.0,0.34550664]
[1749355114403,0.62649144,105620.0,105610.0,0.3366371]
[1749355114619,0.62649144,105620.0,105610.0,0.3388545]
[1749355115054,0.62649144,105620.0,105610.0,0.34550668]
[1749355116151,0.62649144,105620.0,105610.0,0.33663711]
[1749355116400,0.62649144,105620.0,105610.0,0.32998493]
[1749355116864,0.62649144,105620.0,105610.0,0.34550574]
[1749355117079,0.62649144,105620.0,105610.0,0.34550572]
[1749355117295,0.62649144,105620.0,105610.0,0.38332702]
[1749355117791,0.62649144,105620.0,105610.0,0.38332551]
[1749355118025,0.62649144,105620.0,105610.0,0.37445731]
[1749355118407,0.62649144,105620.0,105610.0,0.36780623]
[1749355118613,0.62649144,105620.0,105610.0,0.38332549]
[1749355119432,0.62649144,105620.0,105610.0,0.38332424]
[1749355119647,0.62649144,105620.0,105610.0,0.38332258]
[1749355119850,0.62649144,105620.0,105610.0,0.36780623]
[1749355120063,0.62649144,105620.0,105610.0,0.37667271]
[1749355120265,0.62649144,105620.0,105610.0,0.37445608]
[1749355120541,0.62649144,105620.0,105610.0,0.37667271]
[1749355120943,0.62649144,105620.0,105610.0,0.38332262]
[1749355121134,0.62649144,105620.0,105610.0,0.37667274]
[1749355121343,0.62649144,105620.0,105610.0,0.38332261]
[1749355121582,0.62649144,105620.0,105610.0,0.37667248]
[1749355121766,0.62649144,105620.0,105610.0,0.38332224]
[1749355122189,0.62649144,105620.0,105610.0,0.38332232]
[1749355122417,0.62649144,105620.0,105610.0,0.37667256]
[1749355122634,0.62649144,105620.0,105610.0,0.38332233]
[1749355123065,0.62649144,105620.0,105610.0,0.37667257]
[1749355123280,0.62649144,105620.0,105610.0,0.37667254]
[1749355123507,0.62649144,105620.0,105610.0,0.37667256]
[1749355123724,0.62649144,105620.0,105610.0,0.38332193]
[1749355123951,0.62649144,105620.0,105610.0,0.37445583]
[1749355124183,0.62649144,105620.0,105610.0,0.38332194]
[1749355124535,0.62649144,105620.0,105610.0,0.37445583]
[1749355124763,0.62649144,105620.0,105610.0,0.3744553]
[1749355124994,0.62649144,105620.0,105610.0,0.37667167]
[1749355125205,0.62649144,105620.0,105610.0,0.3833201]
[1749355125413,0.62649144,105620.0,105610.0,0.37667127]
[1749355125672,0.62649144,105620.0,105610.0,0.38332005]
[1749355126376,0.62649144,105620.0,105610.0,0.38332004]
[1749355126594,0.62649144,105620.0,105610.0,0.37667126]
[1749355126842,0.62649144,105620.0,105610.0,0.38331993]
[1749355127282,0.62649144,105620.0,105610.0,0.37667121]
[1749355127510,0.62649144,105620.0,105610.0,0.38331994]
[1749355128611,0.62649144,105620.0,105610.0,0.38331976]
[1749355128813,0.62649144,105620.0,105610.0,0.37667095]
[1749355129018,0.62649144,105620.0,105610.0,0.37445477]
[1749355129224,0.62649144,105620.0,105610.0,0.38331949]
[1749355129885,0.62649144,105620.0,105610.0,0.38331956]
[1749355130516,0.62649144,105620.0,105610.0,0.38331957]
[1749355131139,0.62649144,105620.0,105610.0,0.36780623]
[1749355131323,0.62649144,105620.0,105610.0,0.37445475]
[1749355132072,0.62649144,105620.0,105610.0,0.37445474]
[1749355132477,0.62649144,105620.0,105610.0,0.38331944]
[1749355132682,0.62649144,105620.0,105610.0,0.38331948]
[1749355132885,0.62649144,105620.0,105610.0,0.38331952]
[1749355133347,0.62649144,105620.0,105610.0,0.38332026]
[1749355133755,0.62649144,105620.0,105610.0,0.3744551]
[1749355133969,0.62649144,105620.0,105610.0,0.38332026]
[1749355134560,0.62649144,105620.0,105610.0,0.38332025]
[1749355134917,0.62649144,105620.0,105610.0,0.37445511]
[1749355135120,0.62649144,105620.0,105610.0,0.36780623]
[1749355135319,0.62649144,105620.0,105610.0,0.37667226]
[1749355135517,0.62649144,105620.0,105610.0,0.37445575]
[1749355135719,0.62649144,105620.0,105610.0,0.38332178]
[1749355135927,0.62649144,105620.0,105610.0,0.38332196]
[1749355136320,0.62649144,105620.0,105610.0,0.38332208]
[1749355136687,0.62649144,105620.0,105610.0,0.38332206]
[1749355136896,0.62649144,105620.0,105610.0,0.37445587]
[1749355137083,0.62649144,105620.0,105610.0,0.37667243]
[1749355137286,0.62649144,105620.0,105610.0,0.37445588]
[1749355137617,0.62649144,105620.0,105610.0,0.38332208]
[1749355138230,0.62649144,105620.0,105610.0,0.37445589]
[1749355138445,0.62649144,105620.0,105610.0,0.38332208]
[1749355138658,0.62649144,105620.0,105610.0,0.37667311]
[1749355138863,0.62649144,105620.0,105610.0,0.38332323]
[1749355139073,0.62649144,105620.0,105610.0,0.38332322]
[1749355139484,0.62649144,105620.0,105610.0,0.36780623]
[1749355139642,0.62649144,105620.0,105610.0,0.38332354]
[1749355140048,0.62649144,105620.0,105610.0,0.38332359]
[1749355140264,0.62649144,105620.0,105610.0,0.36780623]
[1749355140445,0.62649144,105620.0,105610.0,0.37445658]
[1749355140669,0.62649144,105620.0,105610.0,0.37445653]
[1749355140943,0.62649144,105620.0,105610.0,0.37667325]
[1749355141069,0.62649144,105620.0,105610.0,0.37445651]
[1749355141268,0.62649144,105620.0,105610.0,0.38332353]
[1749355141464,0.62649144,105620.0,105610.0,0.37445658]
[1749355141666,0.62649144,105620.0,105610.0,0.37667336]
[1749355141917,0.62649144,105620.0,105610.0,0.38332407]
[1749355142116,0.62649144,105620.0,105610.0,0.3833248]
[1749355142283,0.62649144,105620.0,105610.0,0.38332481]
[1749355142660,0.62649144,105620.0,105610.0,0.37445705]
[1749355142868,0.62649144,105620.0,105610.0,0.38332481]
[1749355143491,0.62649144,105620.0,105610.0,0.38332482]
[1749355143675,0.62649144,105620.0,105610.0,0.38332485]
[1749355143903,0.62649144,105620.0,105610.0,0.37667403]
[1749355144046,0.62649144,105620.0,105610.0,0.37445712]
[1749355144281,0.62649144,105620.0,105610.0,0.3833278]
[1749355144478,0.53997144,105620.0,105610.0,0.3833278]
[1749355144686,0.62645144,105620.0,105610.0,0.3833278]
[1749355144918,0.62645144,105620.0,105610.0,0.37667691]
[1749355145297,0.62645144,105620.0,105610.0,0.38332995]
[1749355145527,0.62645144,105620.0,105610.0,0.36780623]
[1749355145715,0.62645144,105620.0,105610.0,0.38332997]
[1749355145997,0.62645144,105620.0,105610.0,0.37445926]
[1749355146227,0.62645144,105620.0,105610.0,0.38333008]
[1749355146443,0.62645144,105620.0,105610.0,0.38333016]
[1749355146690,0.62645144,105620.0,105610.0,0.37667705]
[1749355146930,0.62645144,105620.0,105610.0,0.37445943]
[1749355147160,0.62645144,105620.0,105610.0,0.37667716]
[1749355147390,0.62645144,105620.0,105610.0,0.37667705]
[1749355147613,0.62645144,105620.0,105610.0,0.37445935]
[1749355147838,0.62645144,105620.0,105610.0,0.38333023]
[1749355148513,0.62645144,105620.0,105610.0,0.37445937]
[1749355148744,0.62645144,105620.0,105610.0,0.38333039]
[1749355148974,0.62645144,105620.0,105610.0,0.37667737]
[1749355149447,0.62645144,105620.0,105610.0,0.3833304]
[1749355150352,0.62645144,105620.0,105610.0,0.36780668]
[1749355150571,0.62645144,105620.0,105610.0,0.37445971]
[1749355150829,0.62645144,105620.0,105610.0,0.38333033]
[1749355151254,0.62645144,105620.0,105610.0,0.38333035]
[1749355151710,0.62645144,105620.0,105610.0,0.38333034]
[1749355151927,0.62645144,105620.0,105610.0,0.3833303]
[1749355152200,0.62645144,105620.0,105610.0,0.3766773]
[1749355152439,0.62645144,105620.0,105610.0,0.37667732]
[1749355152665,0.62645144,105620.0,105610.0,0.36780668]
[1749355152897,0.62645144,105620.0,105610.0,0.37667732]
[1749355153060,0.62645144,105620.0,105610.0,0.3833302]
[1749355153270,0.62645144,105620.0,105610.0,0.38333032]
[1749355153476,0.62645144,105620.0,105610.0,0.36780668]
[1749355153684,0.62645144,105620.0,105610.0,0.37445965]
[1749355154200,0.62645144,105620.0,105610.0,0.38333022]
[1749355154630,0.62645144,105620.0,105610.0,0.38333017]
[1749355155015,0.62645144,105620.0,105610.0,0.37667723]
[1749355155220,0.62645144,105620.0,105610.0,0.3744596]
[1749355155422,0.62645144,105620.0,105610.0,0.38333018]
[1749355155621,0.62645144,105620.0,105610.0,0.36780668]
[1749355156005,0.62645144,105620.0,105610.0,0.37445962]
[1749355156212,0.62645144,105620.0,105610.0,0.3833302]
[1749355156853,0.62645144,105620.0,105610.0,0.38333021]
[1749355157098,0.62645144,105620.0,105610.0,0.37445962]
[1749355157276,0.62645144,105620.0,105610.0,0.3833302]
[1749355157472,0.62645144,105620.0,105610.0,0.36780668]
[1749355157671,0.62645144,105620.0,105610.0,0.37667728]
[1749355157870,0.62645144,105620.0,105610.0,0.38333021]
[1749355158689,0.62645144,105620.0,105610.0,0.37667726]
[1749355158909,0.62645144,105620.0,105610.0,0.3766773]
[1749355159114,0.62645144,105620.0,105610.0,0.38333022]
[1749355159311,0.62645144,105620.0,105610.0,0.3744596]
[1749355159714,0.62645144,105620.0,105610.0,0.38333017]
[1749355159828,0.62645144,105620.0,105610.0,0.38333014]
[1749355160496,0.62645144,105620.0,105610.0,0.38333012]
[1749355160698,0.62645144,105620.0,105610.0,0.36780668]
[1749355160915,0.64245144,105620.0,105610.0,0.38333014]
[1749355161120,0.64245144,105620.0,105610.0,0.37667723]
[1749355161325,0.64245144,105620.0,105610.0,0.37667721]
[1749355161535,0.64245144,105620.0,105610.0,0.38333011]
[1749355161935,0.64245144,105620.0,105610.0,0.38333016]
[1749355162174,0.64245144,105620.0,105610.0,0.36780668]
[1749355162523,0.64245144,105620.0,105610.0,0.38333023]
[1749355162707,0.64245144,105620.0,105610.0,0.37667731]
[1749355162921,0.64245144,105620.0,105610.0,0.38333011]
[1749355163106,0.64245144,105620.0,105610.0,0.37667721]
[1749355163303,0.64245144,105620.0,105610.0,0.38333011]
[1749355163714,0.64245144,105620.0,105610.0,0.38333014]
[1749355163964,0.64245144,105620.0,105610.0,0.37667724]
[1749355164139,0.64245144,105620.0,105610.0,0.37445958]
[1749355164340,0.64245144,105620.0,105610.0,0.36780668]
[1749355164546,0.64245144,105620.0,105610.0,0.38333011]
[1749355165304,0.64245144,105620.0,105610.0,0.38333009]
[1749355165495,0.64245144,105620.0,105610.0,0.38333006]
[1749355165973,0.64245144,105620.0,105610.0,0.36780668]
[1749355166643,0.64245144,105620.0,105610.0,0.38332995]
[1749355166852,0.64245144,105620.0,105610.0,0.37445951]
[1749355167055,0.64245144,105620.0,105610.0,0.38333025]
[1749355167494,0.64245144,105620.0,105610.0,0.3833301]
[1749355167697,0.64245144,105620.0,105610.0,0.38333003]
[1749355167870,0.64245144,105620.0,105610.0,0.37667721]
[1749355168072,0.64245144,105620.0,105610.0,0.3766772]
[1749355168280,0.64245144,105620.0,105610.0,0.38333017]
[1749355168420,0.64245144,105620.0,105610.0,0.3833301]
[1749355169294,0.64245144,105620.0,105610.0,0.38333005]
[1749355169504,0.64245144,105620.0,105610.0,0.38332982]
[1749355169645,0.64245144,105620.0,105610.0,0.38332984]
[1749355169853,0.65775144,105620.0,105610.0,0.37445946]
[1749355170075,0.65775144,105620.0,105610.0,0.33942047]
[1749355170279,0.65775144,105620.0,105610.0,0.35494334]
[1749355170487,0.65775144,105620.0,105610.0,0.38332751]
[1749355170885,0.65775144,105620.0,105610.0,0.37445742]
[1749355171122,0.65775144,105620.0,105610.0,0.38332773]
[1749355171286,0.65775144,105620.0,105610.0,0.37445742]
[1749355171487,0.65775144,105620.0,105610.0,0.38332773]
[1749355171709,0.65775144,105620.0,105610.0,0.36780464]
[1749355171924,0.65775144,105620.0,105610.0,0.37667499]
[1749355172128,0.65775144,105620.0,105610.0,0.37445737]
[1749355172302,0.65775144,105620.0,105610.0,0.38332775]
[1749355172987,0.65775144,105620.0,105610.0,0.3744574]
[1749355173198,0.65775144,105620.0,105610.0,0.38332757]
[1749355173384,0.65775144,105620.0,105610.0,0.37445732]
[1749355173608,0.65775144,105620.0,105610.0,0.37667488]
[1749355173833,0.65775144,105620.0,105610.0,0.38332757]
[1749355174034,0.65775144,105620.0,105610.0,0.37667487]
[1749355174212,0.65775144,105620.0,105610.0,0.38332752]
[1749355174413,0.65775144,105620.0,105610.0,0.38332728]
[1749355174673,0.65775144,105620.0,105610.0,0.37445705]
[1749355174806,0.65775144,105620.0,105610.0,0.37667453]
[1749355175013,0.65775144,105620.0,105610.0,0.38332694]
[1749355175220,0.65775144,105620.0,105610.0,0.37667453]
[1749355175661,0.65775144,105620.0,105610.0,0.38332694]
[1749355176310,0.65775144,105620.0,105610.0,0.38332691]
[1749355176526,0.65775144,105620.0,105610.0,0.3766745]
[1749355176748,0.65775144,105620.0,105610.0,0.37445709]
[1749355176954,0.65775144,105620.0,105610.0,0.38332688]
[1749355177158,0.65775144,105620.0,105610.0,0.38332689]
[1749355177405,0.65775144,105620.0,105610.0,0.38332688]
[1749355178047,0.65775144,105620.0,105610.0,0.3678072]
[1749355178253,0.65775144,105620.0,105610.0,0.3589372]
[1749355178460,0.65775144,105620.0,105610.0,0.36780688]
[1749355178686,0.65775144,105620.0,105610.0,0.3589372]
[1749355178902,0.65775144,105620.0,105610.0,0.36115462]
[1749355179076,0.65775144,105620.0,105610.0,0.36780688]
[1749355179922,0.65775144,105620.0,105610.0,0.3678069]
[1749355180086,0.65775144,105620.0,105610.0,0.36115465]
[1749355180289,0.65775144,105620.0,105610.0,0.35228496]
[1749355180491,0.65775144,105620.0,105610.0,0.36780696]
[1749355180694,0.65775144,105620.0,105610.0,0.35228496]
[1749355180893,0.65775144,105620.0,105610.0,0.36780697]
[1749355181856,0.65775144,105620.0,105610.0,0.36115468]
[1749355182071,0.65775144,105620.0,105610.0,0.36780687]
[1749355182271,0.65775144,105620.0,105610.0,0.35893721]
[1749355182482,0.65775144,105620.0,105610.0,0.35893719]
[1749355182678,0.65775144,105620.0,105610.0,0.36780684]
[1749355183208,0.65775144,105620.0,105610.0,0.35893719]
[1749355183426,0.65775144,105620.0,105610.0,0.36780681]
[1749355183632,0.65775144,105620.0,105610.0,0.35893723]
[1749355183842,0.65775144,105620.0,105610.0,0.35228496]
[1749355184267,0.65775144,105620.0,105610.0,0.36780683]
[1749355184485,0.65775144,105620.0,105610.0,0.36780681]
[1749355184909,0.65775144,105620.0,105610.0,0.36780678]
[1749355185122,0.65775144,105620.0,105610.0,0.3678068]
[1749355185350,0.65775144,105620.0,105610.0,0.35893717]
[1749355185575,0.65775144,105620.0,105610.0,0.36115457]
[1749355185704,0.65775144,105620.0,105610.0,0.36780677]
[1749355185924,0.65775144,105620.0,105610.0,0.35228496]
[1749355186128,0.65775144,105620.0,105610.0,0.35893716]
[1749355186359,0.65775144,105620.0,105610.0,0.36780677]
[1749355186829,0.65775144,105620.0,105610.0,0.35228496]
[1749355187110,0.65775144,105620.0,105610.0,0.36780676]
[1749355187426,0.65775144,105620.0,105610.0,0.35228496]
[1749355187584,0.65775144,105620.0,105610.0,0.36780678]
[1749355187798,0.65775144,105620.0,105610.0,0.36780686]
[1749355188001,0.65775144,105620.0,105610.0,0.36780677]
[1749355188555,0.65775144,105620.0,105610.0,0.36115457]
[1749355188812,0.65775144,105620.0,105610.0,0.36780695]
[1749355188982,0.65775144,105620.0,105610.0,0.36780696]
[1749355189203,0.65775144,105620.0,105610.0,0.36780695]
[1749355189403,0.65775144,105620.0,105610.0,0.36780692]
[1749355189674,0.65775144,105620.0,105610.0,0.36780697]
[1749355189881,0.65775144,105620.0,105610.0,0.36780695]
[1749355190708,0.65775144,105620.0,105610.0,0.36780698]
[1749355190915,0.65775144,105620.0,105610.0,0.367807]
[1749355191088,0.65775144,105620.0,105610.0,0.35228496]
[1749355191296,0.65775144,105620.0,105610.0,0.35893729]
[1749355191500,0.65775144,105620.0,105610.0,0.35228496]
[1749355191704,0.65775144,105620.0,105610.0,0.35893728]
[1749355192081,0.65775144,105620.0,105610.0,0.367807]
[1749355192290,0.65775144,105620.0,105610.0,0.36780697]
[1749355192508,0.65775144,105620.0,105610.0,0.35228496]
[1749355192666,0.65775144,105620.0,105610.0,0.35893732]
[1749355192869,0.65775144,105620.0,105610.0,0.36780724]
[1749355193084,0.64245144,105620.0,105610.0,0.33942294]
[1749355194249,0.64245144,105620.0,105610.0,0.33942305]
[1749355194445,0.64245144,105620.0,105610.0,0.33942308]
[1749355194649,0.64245144,105620.0,105610.0,0.33277069]
[1749355194802,0.64245144,105620.0,105610.0,0.33055318]
[1749355194984,0.64245144,105620.0,105610.0,0.33277066]
[1749355195174,0.64245144,105620.0,105610.0,0.33942282]
[1749355195579,0.64245144,105620.0,105610.0,0.3394228]
[1749355195774,0.64245144,105620.0,105610.0,0.3393828]
[1749355195984,0.64245144,105620.0,105610.0,0.33273059]
[1749355196187,0.64245144,105620.0,105610.0,0.33938304]
[1749355196418,0.64245144,105620.0,105610.0,0.32386079]
[1749355196624,0.64245144,105620.0,105610.0,0.33051312]
[1749355196821,0.64245144,105620.0,105610.0,0.33273056]
[1749355197065,0.64245144,105620.0,105610.0,0.33938301]
[1749355197513,0.64245144,105620.0,105610.0,0.33938304]
[1749355197741,0.64245144,105620.0,105610.0,0.33051315]
[1749355197945,0.64245144,105620.0,105610.0,0.33938292]
[1749355198063,0.64245144,105620.0,105610.0,0.33938291]
[1749355198270,0.64245144,105620.0,105610.0,0.33273057]
[1749355198468,0.64245144,105620.0,105610.0,0.33273058]
[1749355198716,0.64245144,105620.0,105610.0,0.33938292]
[1749355199115,0.64245144,105620.0,105610.0,0.33273058]
[1749355199310,0.64245144,105620.0,105610.0,0.33938317]
[1749355199664,0.64245144,105620.0,105610.0,0.33051339]
[1749355199867,0.64245144,105620.0,105610.0,0.33938352]
[1749355200060,0.64245144,105620.0,105610.0,0.33051339]
[1749355200262,0.64245144,105620.0,105610.0,0.33938352]
[1749355200476,0.64245144,105620.0,105610.0,0.33051339]
[1749355200715,0.64245144,105620.0,105610.0,0.32386079]
[1749355201126,0.64245144,105620.0,105610.0,0.33273093]
[1749355201360,0.64245144,105620.0,105610.0,0.32386079]
[1749355201770,0.64245144,105620.0,105610.0,0.33273093]
[1749355201968,0.64245144,105620.0,105610.0,0.32386079]
[1749355202109,0.64245144,105620.0,105610.0,0.33051339]
[1749355202309,0.64245144,105620.0,105610.0,0.33273093]
[1749355202559,0.64245144,105620.0,105610.0,0.33938353]
[1749355202973,0.62645144,105620.0,105610.0,0.33273093]
[1749355203305,0.62645144,105620.0,105610.0,0.33051339]
[1749355203512,0.53997144,105620.0,105610.0,0.33051339]
[1749355203719,0.62645144,105620.0,105610.0,0.33938353]
[1749355203936,0.62645144,105620.0,105610.0,0.33938352]
[1749355204154,0.62645144,105620.0,105610.0,0.33051338]
[1749355204363,0.62645144,105620.0,105610.0,0.33938351]
[1749355204957,0.62645144,105620.0,105610.0,0.33051338]
[1749355205130,0.62645144,105620.0,105610.0,0.32386079]
[1749355205772,0.62930579,105620.0,105610.0,0.3393835]
[1749355206354,0.62930579,105620.0,105610.0,0.33051338]
[1749355206545,0.62930579,105620.0,105610.0,0.32386079]
[1749355206742,0.62930579,105620.0,105610.0,0.33051334]
[1749355206954,0.62930579,105620.0,105610.0,0.33051332]
[1749355207437,0.62930579,105620.0,105610.0,0.32386079]
[1749355207639,0.62930579,105620.0,105610.0,0.33051332]
[1749355208178,0.62930579,105620.0,105610.0,0.32386079]
[1749355208824,0.62930579,105620.0,105610.0,0.33051332]
[1749355209052,0.62930579,105620.0,105610.0,0.32386079]
[1749355209508,0.62930579,105620.0,105610.0,0.33051333]
[1749355210294,0.62930579,105620.0,105610.0,0.32386079]
[1749355210610,0.62930579,105620.0,105610.0,0.33051333]
[1749355210791,0.62930579,105620.0,105610.0,0.33051332]
[1749355210994,0.62930579,105620.0,105610.0,0.32386079]
[1749355211323,0.62930579,105620.0,105610.0,0.33051333]
[1749355211735,0.62930579,105620.0,105610.0,0.32386079]
[1749355212160,0.62930579,105620.0,105610.0,0.33051318]
[1749355212419,0.62930579,105620.0,105610.0,0.32386079]
[1749355213031,0.62930579,105620.0,105610.0,0.33051318]
[1749355213524,0.62930579,105620.0,105610.0,0.33051329]
[1749355213753,0.62930579,105620.0,105610.0,0.32386079]
[1749355213965,0.62930579,105620.0,105610.0,0.33051301]
[1749355214110,0.62930579,105620.0,105610.0,0.3305131]
[1749355214323,0.62930579,105620.0,105610.0,0.33051309]
[1749355214502,0.62930579,105620.0,105610.0,0.33051311]
[1749355214702,0.62930579,105620.0,105610.0,0.33051307]
[1749355215366,0.62930579,105620.0,105610.0,0.32386079]
[1749355215599,0.62930579,105620.0,105610.0,0.33051304]
[1749355215980,0.62930579,105620.0,105610.0,0.3305131]
[1749355216164,0.62930579,105620.0,105610.0,0.33051304]
[1749355217177,0.62930579,105620.0,105610.0,0.33051301]
[1749355217378,0.62930579,105620.0,105610.0,0.32386079]
[1749355217761,0.62930579,105620.0,105610.0,0.33051301]
[1749355219245,0.62930579,105620.0,105610.0,0.32386079]
[1749355219412,0.62930579,105620.0,105610.0,0.33051301]
[1749355220632,0.62930579,105620.0,105610.0,0.32386079]
[1749355220843,0.62930579,105620.0,105610.0,0.330513]
[1749355221048,0.62930579,105620.0,105610.0,0.32386079]
[1749355221249,0.62930579,105620.0,105610.0,0.330513]
[1749355222306,0.62930579,105620.0,105610.0,0.33051304]
[1749355222517,0.62930579,105620.0,105610.0,0.32386079]
[1749355223081,0.62930579,105620.0,105610.0,0.33051301]
[1749355224137,0.62930579,105620.0,105610.0,0.33051302]
[1749355224342,0.62930579,105620.0,105610.0,0.33051303]
[1749355224589,0.62930579,105620.0,105610.0,0.33051304]
[1749355224788,0.62930579,105620.0,105610.0,0.32386079]
[1749355225189,0.62930579,105620.0,105610.0,0.33051303]
[1749355226094,0.62930579,105620.0,105610.0,0.33051302]
[1749355226284,0.62930579,105620.0,105610.0,0.32386079]
[1749355226485,0.62930579,105620.0,105610.0,0.33051302]
[1749355227452,0.62930579,105620.0,105610.0,0.32386079]
[1749355227854,0.62930579,105620.0,105610.0,0.33051304]
[1749355228097,0.62930579,105620.0,105610.0,0.33051305]
[1749355228581,0.62930579,105620.0,105610.0,0.32386079]
[1749355228774,0.62930579,105620.0,105610.0,0.3305131]
[1749355229124,0.62930579,105620.0,105610.0,0.33051316]
[1749355229354,0.62930579,105620.0,105610.0,0.33051314]
[1749355229672,0.62930579,105620.0,105610.0,0.32386079]
[1749355229870,0.62930579,105620.0,105610.0,0.33051319]
[1749355230028,0.62930579,105620.0,105610.0,0.32386079]
[1749355230232,0.62930579,105620.0,105610.0,0.3305132]
[1749355230659,0.62930579,105620.0,105610.0,0.33051337]
[1749355231210,0.62930579,105620.0,105610.0,0.32386079]
[1749355231413,0.62930579,105620.0,105610.0,0.3305133]
[1749355231606,0.62930579,105620.0,105610.0,0.33051329]
[1749355231795,0.62930579,105620.0,105610.0,0.32386079]
[1749355232211,0.62930579,105620.0,105610.0,0.3305134]
[1749355232416,0.62930579,105620.0,105610.0,0.32386079]
[1749355232621,0.62930579,105620.0,105610.0,0.33051343]
[1749355233031,0.62930579,105620.0,105610.0,0.32386079]
[1749355233251,0.64470579,105620.0,105610.0,0.33051343]
[1749355233677,0.64470579,105620.0,105610.0,0.33051344]
[1749355233892,0.64470579,105620.0,105610.0,0.32386079]
[1749355234108,0.64470579,105620.0,105610.0,0.33051344]
[1749355234355,0.66010579,105620.0,105610.0,0.3588592]
[1749355234591,0.66010579,105620.0,105610.0,0.07300074]
[1749355234797,0.66010579,105620.0,105610.0,0.32953175]
[1749355235000,0.66010579,105620.0,105610.0,0.31400635]
[1749355235215,0.66010579,105620.0,105610.0,0.31438525]
[1749355235427,0.66010579,105620.0,105610.0,0.32991101]
[1749355235845,0.66010579,105620.0,105610.0,0.32990738]
[1749355236251,0.66010579,105620.0,105610.0,0.32990225]
[1749355236450,0.66010579,105620.0,105610.0,0.31438525]
[1749355236656,0.66010579,105620.0,105610.0,0.32325195]
[1749355236837,0.66010579,105620.0,105610.0,0.32325201]
[1749355237443,0.66010579,105620.0,105610.0,0.31438525]
[1749355237645,0.66010579,105620.0,105610.0,0.32325068]
[1749355237842,0.64470579,105620.0,105610.0,0.31438525]
[1749355238184,0.64470579,105620.0,105610.0,0.32325015]
[1749355238389,0.64470579,105620.0,105610.0,0.32325004]
[1749355238759,0.64470579,105620.0,105610.0,0.31438525]
[1749355238972,0.64470579,105620.0,105610.0,0.32325009]
[1749355239534,0.66120579,105620.0,105610.0,0.32325009]
[1749355239943,0.66120579,105620.0,105610.0,0.3232501]
[1749355240562,0.66120579,105620.0,105610.0,0.32325005]
[1749355241507,0.64470579,105620.0,105610.0,0.31438525]
[1749355242076,0.64470579,105620.0,105610.0,0.32324971]
[1749355242716,0.64470579,105620.0,105610.0,0.32324986]
[1749355243295,0.64470579,105620.0,105610.0,0.31438525]
[1749355243497,0.64470579,105620.0,105610.0,0.32324986]
[1749355243723,0.64470579,105620.0,105610.0,0.31438525]
[1749355243879,0.64470579,105620.0,105610.0,0.32324986]
[1749355244074,0.64470579,105620.0,105610.0,0.32324985]
[1749355244981,0.64470579,105620.0,105610.0,0.31438525]
[1749355245194,0.64470579,105620.0,105610.0,0.32324987]
[1749355245599,0.64470579,105620.0,105610.0,0.32324986]
[1749355246652,0.64470579,105620.0,105610.0,0.32324991]
[1749355246874,0.66040579,105620.0,105610.0,0.31438525]
[1749355247085,0.66040579,105620.0,105610.0,0.32324991]
[1749355247468,0.66040579,105620.0,105610.0,0.31438525]
[1749355247701,0.66040579,105620.0,105610.0,0.32324991]
[1749355248118,0.66040579,105620.0,105610.0,0.32325017]
[1749355248322,1.15172579,105620.0,105610.0,0.32325017]
[1749355248943,1.15172579,105620.0,105610.0,0.31438525]
[1749355249148,1.13602579,105620.0,105610.0,0.31438525]
[1749355249553,1.13602579,105620.0,105610.0,0.32325018]
[1749355249983,1.13602579,105620.0,105610.0,0.32325014]
[1749355250398,1.13602579,105620.0,105610.0,0.32325044]
[1749355252438,1.13602579,105620.0,105610.0,0.32325052]
[1749355252667,1.13602579,105620.0,105610.0,0.31438525]
[1749355252872,1.13602579,105620.0,105610.0,0.32325052]
[1749355253745,1.13602579,105620.0,105610.0,0.32325089]
[1749355253950,1.13602579,105620.0,105610.0,0.31438525]
[1749355254155,1.13602579,105620.0,105610.0,0.32325123]
[1749355254348,1.13602579,105620.0,105610.0,0.31438525]
[1749355254489,1.13602579,105620.0,105610.0,0.32325123]
[1749355254699,1.13602579,105620.0,105610.0,0.31438525]
[1749355255088,1.13602579,105620.0,105610.0,0.32325123]
[1749355255923,1.13602579,105620.0,105610.0,0.32325216]
[1749355257454,1.13602579,105620.0,105610.0,0.31438525]
[1749355257906,1.13602579,105620.0,105610.0,0.32325246]
[1749355258140,1.13602579,105620.0,105610.0,0.31438525]
[1749355258345,1.13602579,105620.0,105610.0,0.32325246]
[1749355259118,1.13602579,105620.0,105610.0,0.3232527]
[1749355259723,1.13602579,105620.0,105610.0,0.31438525]
[1749355260413,1.13602579,105620.0,105610.0,0.3232527]
[1749355261184,1.13602579,105620.0,105610.0,0.32325463]
[1749355262004,1.13602579,105620.0,105610.0,0.32325492]
[1749355262926,1.13602579,105620.0,105610.0,0.32325504]
[1749355263287,1.13602579,105620.0,105610.0,0.31438525]
[1749355263530,1.13529376,105620.0,105610.0,0.31438525]
[1749355263746,1.13529376,105620.0,105610.0,0.32325504]
[1749355264314,1.13529376,105620.0,105610.0,0.32325499]
[1749355264526,1.13529376,105620.0,105610.0,0.31438525]
[1749355265279,1.13529376,105620.0,105610.0,0.32325499]
[1749355265743,1.13529376,105620.0,105610.0,0.32325519]
[1749355266839,1.13529376,105620.0,105610.0,0.31438525]
[1749355267050,1.13529376,105620.0,105610.0,0.32325519]
[1749355267209,1.13529376,105620.0,105610.0,0.31438525]
[1749355267416,1.13529376,105620.0,105610.0,0.32325519]
[1749355267683,1.13529376,105620.0,105610.0,0.32325557]
[1749355268106,1.13529376,105620.0,105610.0,0.32325558]
[1749355268694,1.13529376,105620.0,105610.0,0.31438525]
[1749355268846,1.13529376,105620.0,105610.0,0.32325558]
[1749355269896,1.13529376,105620.0,105610.0,0.32325536]
[1749355271617,1.13529376,105620.0,105610.0,0.32325524]
[1749355271795,1.13529376,105620.0,105610.0,0.31438525]
[1749355272627,1.13529376,105620.0,105610.0,0.3232552]
[1749355273475,1.13529376,105620.0,105610.0,0.31438525]
[1749355273681,1.15139376,105620.0,105610.0,0.3232552]
[1749355275457,1.15139376,105620.0,105610.0,0.31438525]
[1749355275834,1.15139376,105620.0,105610.0,0.32325515]
[1749355276026,1.15139376,105620.0,105610.0,0.32325542]
[1749355276627,1.15139376,105620.0,105610.0,0.32325546]